bitfinex/quotes_BTCUSD_20230118
["timestamp","ask_amount","ask_price","bid_price","bid_amount"]
[1674011337257,0.0114275,21323.0,21322.0,0.72584091]
[1674011337750,0.3330815,21323.0,21322.0,0.72584091]
[1674011338040,0.0114275,21323.0,21322.0,0.72584091]
[1674011338284,0.0114275,21323.0,21322.0,0.083]
[1674011339020,0.0114275,21323.0,21322.0,0.08290477]
[1674011339274,0.4078815,21323.0,21322.0,0.08290477]
[1674011339522,0.4826815,21323.0,21322.0,0.08290477]
[1674011339783,0.9516585,21323.0,21322.0,0.08290477]
[1674011340261,0.9506585,21323.0,21318.0,0.938144]
[1674011340522,0.9506585,21323.0,21322.0,0.076]
[1674011340523,0.9493815,21323.0,21322.0,0.076]
[1674011340762,0.15,21322.0,21318.0,0.469071]
[1674011341004,0.0745,21320.0,21318.0,0.469071]
[1674011341243,0.321654,21319.0,21318.0,0.469071]
[1674011341505,0.321654,21319.0,21318.0,0.545071]
[1674011341753,0.321654,21319.0,21317.0,0.469088]
[1674011342002,0.0744,21319.0,21318.0,0.076]
[1674011342257,0.396054,21319.0,21317.0,0.469088]
[1674011342504,0.0754,21319.0,21318.0,0.076]
[1674011342783,0.397054,21319.0,21318.0,0.076]
[1674011343284,0.396054,21319.0,21315.0,0.469145]
[1674011343532,0.396454,21318.0,21317.0,0.076]
[1674011344285,0.546454,21318.0,21314.0,0.469157]
[1674011344526,0.321654,21317.0,21314.0,0.469157]
[1674011344768,0.54366,21320.0,21315.0,0.00090427]
[1674011345011,0.016,21318.0,21317.0,0.006]
[1674011345270,0.0746,21320.0,21316.0,0.938243]
[1674011345517,0.47872663,21323.0,21317.0,1.90614564]
[1674011345773,0.47872663,21323.0,21318.0,0.66792764]
[1674011346003,0.47872663,21323.0,21319.0,0.65978095]
[1674011346752,0.49472663,21323.0,21319.0,0.469055]
[1674011346999,0.15,21322.0,21319.0,0.469055]
[1674011347253,0.15,21322.0,21317.0,0.469109]
[1674011347254,0.396154,21321.0,21317.0,0.469109]
[1674011347496,0.321654,21320.0,21317.0,0.94631069]
[1674011347765,0.0742,21322.0,21319.0,0.076]
[1674011348004,0.0742,21322.0,21319.0,0.469053]
[1674011348248,0.001,21321.0,21319.0,0.65977895]
[1674011348736,0.001,21321.0,21320.0,0.321654]
[1674011349007,0.001,21321.0,21320.0,0.790697]
[1674011349269,0.01042663,21323.0,21320.0,0.469043]
[1674011349511,0.001,21322.0,21320.0,0.469043]
[1674011349759,0.001,21322.0,21320.0,0.938086]
[1674011349998,0.01042663,21323.0,21320.0,0.938086]
[1674011351022,0.01042663,21323.0,21320.0,1.088086]
[1674011351248,0.01042663,21323.0,21320.0,0.938086]
[1674011351487,0.01142663,21323.0,21321.0,0.15]
[1674011351738,0.01142663,21323.0,21322.0,0.937998]
[1674011352710,0.01042663,21323.0,21322.0,0.937998]
[1674011352958,0.01142663,21323.0,21322.0,0.994998]
[1674011354949,0.01142663,21323.0,21322.0,0.525999]
[1674011355213,0.40788063,21323.0,21322.0,0.057]
[1674011359183,0.40788063,21323.0,21322.0,0.525999]
[1674011359184,0.33308063,21323.0,21322.0,0.525999]
[1674011359700,0.01142663,21323.0,21322.0,0.525999]
[1674011360216,0.01142663,21323.0,21322.0,0.994998]
[1674011363677,0.01142663,21323.0,21322.0,1.316652]
[1674011363936,0.01142663,21323.0,21322.0,0.994998]
[1674011365830,0.33308063,21323.0,21322.0,0.057]
[1674011366086,0.40728063,21323.0,21322.0,0.057]
[1674011366615,0.40728063,21323.0,21322.0,0.05688313]
[1674011366616,0.51936135,21323.0,21322.0,0.05688313]
[1674011367704,0.40728063,21323.0,21322.0,0.05688313]
[1674011371038,0.80205763,21323.0,21322.0,0.05688313]
[1674011371289,0.91413835,21323.0,21322.0,0.05688313]
[1674011372113,0.98893835,21323.0,21322.0,0.05688313]
[1674011372653,1.6265877,21323.0,21322.0,0.05688313]
[1674011373177,2.18529918,21323.0,21322.0,0.05688313]
[1674011373911,2.31662683,21323.0,21322.0,0.05688313]
[1674011373913,2.4612885,21323.0,21322.0,0.05688313]
[1674011374192,2.17964219,21323.0,21322.0,0.05688313]
[1674011374448,2.02893839,21323.0,21322.0,0.05688313]
[1674011374716,1.26540116,21323.0,21322.0,0.05688313]
[1674011375027,1.15260128,21323.0,21322.0,0.05688313]
[1674011375254,0.87185763,21323.0,21322.0,0.05688313]
[1674011375519,0.98415412,21323.0,21322.0,0.05688313]
[1674011375819,0.87185763,21323.0,21322.0,0.05688313]
[1674011376078,0.90935412,21323.0,21322.0,0.05688313]
[1674011376337,0.79705763,21323.0,21322.0,0.05688313]
[1674011376636,0.90935412,21323.0,21322.0,0.05688313]
[1674011376926,1.73397816,21323.0,21322.0,0.05688313]
[1674011377189,1.72762474,21323.0,21322.0,0.05688313]
[1674011377462,0.72166703,21323.0,21322.0,0.05688313]
[1674011377750,0.60889596,21323.0,21322.0,0.05688313]
[1674011378005,0.4404043,21323.0,21322.0,0.05688313]
[1674011378799,0.60889433,21323.0,21322.0,0.05688313]
[1674011379070,0.4404043,21323.0,21322.0,0.05688313]
[1674011380923,0.32808063,21323.0,21322.0,0.05688313]
[1674011381462,0.32808063,21323.0,21322.0,0.05778711]
[1674011382020,0.00642663,21323.0,21322.0,0.48459074]
[1674011382535,0.00642663,21323.0,21322.0,1.14431569]
[1674011382819,0.00642663,21323.0,21322.0,2.63126904]
[1674011383349,0.00642663,21323.0,21322.0,2.48126904]
[1674011383651,0.00642663,21323.0,21322.0,3.14919668]
[1674011383914,0.01492572,21325.0,21323.0,0.15]
[1674011384166,0.01492572,21325.0,21324.0,2.39519299]
[1674011384425,0.01492572,21325.0,21324.0,3.01684699]
[1674011384872,0.01492572,21328.0,21324.0,4.83270904]
[1674011385094,0.01492572,21328.0,21326.0,0.0748]
[1674011385320,0.01492572,21328.0,21327.0,1.728321]
[1674011385562,0.01492572,21328.0,21327.0,2.0905473]
[1674011385945,0.01492572,21328.0,21327.0,1.70247409]
[1674011386202,0.01492572,21328.0,21327.0,2.36470039]
[1674011386458,0.01492572,21328.0,21327.0,2.06470039]
[1674011386720,0.01492572,21328.0,21327.0,2.36470039]
[1674011387026,0.01492572,21328.0,21327.0,2.36592285]
[1674011387536,0.01492572,21328.0,21327.0,2.15892285]
[1674011387811,0.01492572,21328.0,21327.0,2.36592285]
[1674011388078,0.01492572,21328.0,21327.0,2.45892285]
[1674011388375,0.01492572,21328.0,21327.0,2.93612454]
[1674011388632,0.01492572,21328.0,21327.0,3.10731634]
[1674011389684,0.01492572,21328.0,21327.0,3.11588594]
[1674011389946,0.01492572,21328.0,21327.0,2.93365999]
[1674011390211,0.01492572,21328.0,21327.0,2.94293691]
[1674011390465,0.01492572,21328.0,21327.0,2.86803691]
[1674011390732,0.01492572,21328.0,21327.0,2.77594069]
[1674011391022,0.01492572,21328.0,21327.0,2.86794069]
[1674011392379,0.7494627,21338.0,21327.0,2.49176377]
[1674011392666,0.7494627,21338.0,21330.0,0.0747]
[1674011392667,0.3490231,21338.0,21330.0,0.0747]
[1674011392929,0.0745,21337.0,21331.0,1.49141061]
[1674011393198,0.321654,21336.0,21332.0,0.19072595]
[1674011393471,0.321654,21335.0,21332.0,0.19072595]
[1674011393777,0.2245,21337.0,21331.0,1.42793611]
[1674011393778,0.321654,21334.0,21331.0,1.42793611]
[1674011394033,0.15,21336.0,21333.0,0.43363158]
[1674011394314,0.51579275,21337.0,21333.0,0.62435753]
[1674011394573,0.321654,21336.0,21333.0,0.62435753]
[1674011394867,0.321654,21335.0,21333.0,0.43363158]
[1674011395233,0.321654,21334.0,21333.0,0.048]
[1674011395450,0.321654,21334.0,21330.0,0.9405095]
[1674011395702,0.321654,21333.0,21330.0,0.4717005]
[1674011395928,1.00809414,21335.0,21330.0,0.4717005]
[1674011396154,0.471654,21334.0,21333.0,0.094]
[1674011396406,0.546454,21334.0,21333.0,0.094]
[1674011396619,1.389789,21334.0,21333.0,0.094]
[1674011397055,1.389789,21334.0,21328.0,8.843e-05]
[1674011397270,0.697454,21333.0,21330.0,0.086]
[1674011397495,0.0748,21331.0,21328.0,8.843e-05]
[1674011397747,0.396154,21330.0,21328.0,8.843e-05]
[1674011397961,0.321654,21329.0,21328.0,8.843e-05]
[1674011398875,0.321654,21329.0,21328.0,0.35987749]
[1674011399119,0.29851427,21332.0,21328.0,0.35387749]
[1674011399337,0.29851427,21332.0,21328.0,0.54460344]
[1674011399551,0.321654,21331.0,21328.0,0.54460344]
[1674011399807,0.29851427,21332.0,21328.0,0.35387749]
[1674011400028,0.007,21329.0,21328.0,0.35387749]
[1674011400301,0.29851427,21332.0,21328.0,0.35387749]
[1674011400518,0.001,21331.0,21328.0,0.63060344]
[1674011400754,0.29851427,21332.0,21328.0,0.35387749]
[1674011400974,0.29851427,21332.0,21328.0,0.54460344]
[1674011401210,0.0748,21333.0,21328.0,0.54460344]
[1674011401211,0.001,21329.0,21328.0,0.54460344]
[1674011401407,0.36645499,21333.0,21328.0,0.35387749]
[1674011401650,0.001,21331.0,21328.0,0.63060344]
[1674011401873,0.321654,21330.0,21328.0,8.843e-05]
[1674011402088,0.321654,21329.0,21328.0,8.843e-05]
[1674011402984,0.321654,21329.0,21328.0,0.08708843]
[1674011403220,0.321654,21329.0,21328.0,8.843e-05]
[1674011403428,0.322654,21329.0,21328.0,0.08608843]
[1674011403892,0.001,21329.0,21328.0,0.08608843]
[1674011404334,0.618781,21332.0,21328.0,8.843e-05]
[1674011404567,0.001,21329.0,21328.0,0.27681438]
[1674011404796,0.83521699,21333.0,21328.0,8.843e-05]
[1674011405016,0.83521699,21333.0,21329.0,0.19072595]
[1674011405236,0.321654,21332.0,21329.0,0.19072595]
[1674011405453,0.321654,21331.0,21328.0,8.843e-05]
[1674011405673,0.001,21329.0,21328.0,0.08608843]
[1674011406354,0.17149,21332.0,21328.0,8.843e-05]
[1674011406642,1.30400999,21333.0,21328.0,0.19081438]
[1674011406836,0.001,21329.0,21328.0,0.27681438]
[1674011407078,0.001,21329.0,21328.0,0.08608843]
[1674011407543,1.22920999,21333.0,21328.0,8.843e-05]
[1674011407765,0.29165499,21333.0,21329.0,0.64424411]
[1674011407984,0.29165499,21333.0,21330.0,0.19072595]
[1674011408203,0.4355,21334.0,21330.0,0.19072595]
[1674011408204,0.4355,21334.0,21330.0,1.49147461]
[1674011408433,0.4355,21334.0,21331.0,0.36310466]
[1674011408665,0.4355,21334.0,21331.0,1.02261861]
[1674011408888,0.4355,21334.0,21331.0,1.30048366]
[1674011409120,0.34146384,21336.0,21331.0,1.30048366]
[1674011409351,0.001,21334.0,21331.0,1.57720961]
[1674011409555,0.34146384,21336.0,21332.0,0.35424776]
[1674011409779,0.81016684,21336.0,21331.0,0.91788866]
[1674011410011,0.81016684,21336.0,21331.0,0.086]
[1674011410012,0.0746,21332.0,21331.0,0.086]
[1674011410333,0.396254,21332.0,21331.0,0.086]
[1674011410617,0.396254,21332.0,21329.0,0.85344402]
[1674011410901,0.321654,21331.0,21329.0,0.85344402]
[1674011411147,0.0746,21332.0,21329.0,0.85344402]
[1674011411409,0.543386,21332.0,21329.0,0.38461602]
[1674011411704,0.321654,21331.0,21329.0,0.38461602]
[1674011411931,0.321654,21330.0,21329.0,0.38461602]
[1674011412723,0.82996662,21332.0,21329.0,0.44061602]
[1674011413127,0.82996662,21332.0,21329.0,0.38461602]
[1674011413128,0.321654,21331.0,21329.0,0.38461602]
[1674011413129,0.001,21330.0,21329.0,0.46461602]
[1674011413363,0.391814,21330.0,21329.0,0.08]
[1674011414101,0.67668059,21330.0,21329.0,0.08]
[1674011414105,1.29470359,21330.0,21329.0,0.08]
[1674011414346,0.322654,21330.0,21329.0,0.27072595]
[1674011414536,0.322654,21330.0,21329.0,0.08]
[1674011414790,0.001,21330.0,21329.0,0.548845]
[1674011415017,0.001,21330.0,21329.0,0.54974869]
[1674011415686,0.001,21330.0,21329.0,1.01343088]
[1674011415904,0.001,21330.0,21329.0,1.01252719]
[1674011416140,0.001,21330.0,21329.0,0.54368219]
[1674011416591,0.001,21330.0,21329.0,0.08]
[1674011416802,0.322654,21330.0,21329.0,0.08]
[1674011417276,0.001,21330.0,21329.0,0.08]
[1674011417742,0.07016,21330.0,21329.0,0.08]
[1674011417969,0.466114,21330.0,21329.0,0.08]
[1674011419131,0.616114,21330.0,21329.0,0.08]
[1674011419370,0.466114,21330.0,21329.0,0.08]
[1674011420092,0.396954,21330.0,21329.0,0.08]
[1674011422261,0.43497767,21330.0,21329.0,0.08]
[1674011422541,0.76070168,21330.0,21329.0,0.08]
[1674011422845,2.05381041,21330.0,21329.0,0.08]
[1674011423107,2.57661391,21330.0,21329.0,0.08]
[1674011423365,2.87614305,21330.0,21329.0,0.08]
[1674011423628,2.35151754,21330.0,21329.0,0.08]
[1674011424163,2.36987626,21330.0,21329.0,0.08]
[1674011424431,2.25035343,21330.0,21329.0,0.08]
[1674011424978,2.25035343,21330.0,21329.0,0.06729795]
[1674011425513,2.25035343,21330.0,21320.0,0.469021]
[1674011425514,3.29061756,21330.0,21321.0,0.75136583]
[1674011425785,0.0745,21325.0,21321.0,0.63249178]
[1674011426275,0.0745,21325.0,21321.0,0.44176583]
[1674011426276,0.0744,21323.0,21321.0,0.44176583]
[1674011426550,0.321654,21322.0,21321.0,0.44176583]
[1674011426810,0.639015,21326.0,21323.0,0.41711439]
[1674011427106,0.639015,21326.0,21323.0,0.60784034]
[1674011427384,0.351654,21325.0,21323.0,0.41711439]
[1674011427665,0.321654,21324.0,21323.0,0.41711439]
[1674011427932,0.321654,21324.0,21321.0,0.469008]
[1674011428215,0.321654,21323.0,21321.0,0.469008]
[1674011428524,0.321654,21322.0,21320.0,0.94197651]
[1674011428786,0.03,21324.0,21320.0,0.94197651]
[1674011429327,0.324654,21323.0,21321.0,0.062]
[1674011429598,1.012672,21325.0,21320.0,0.94197651]
[1674011429854,1.012672,21325.0,21320.0,1.13270246]
[1674011430139,0.321654,21324.0,21320.0,1.13270246]
[1674011430407,0.003,21322.0,21320.0,1.00397651]
[1674011430802,1.012672,21325.0,21320.0,0.94197651]
[1674011430803,1.186331,21325.0,21320.0,0.94197651]
[1674011430804,0.717379,21325.0,21320.0,0.94197651]
[1674011431054,0.719379,21325.0,21320.0,1.18570246]
[1674011431284,0.543739,21325.0,21320.0,1.13270246]
[1674011431513,0.003,21322.0,21320.0,1.66374546]
[1674011431741,0.718709,21325.0,21320.0,1.41101951]
[1674011431742,0.543739,21325.0,21320.0,1.41101951]
[1674011431973,0.0768,21325.0,21320.0,1.65474546]
[1674011433039,0.545738,21325.0,21320.0,1.65474546]
[1674011433311,0.470938,21325.0,21320.0,1.65474546]
[1674011433535,0.468938,21325.0,21321.0,0.01956194]
[1674011433795,0.468938,21325.0,21321.0,0.21028789]
[1674011434203,0.321654,21323.0,21321.0,0.01956194]
[1674011434474,0.470938,21325.0,21321.0,0.01956194]
[1674011434729,0.472938,21325.0,21321.0,0.26328789]
[1674011434989,0.468938,21325.0,21321.0,0.21028789]
[1674011435255,0.321654,21324.0,21321.0,0.21028789]
[1674011435526,0.321654,21323.0,21321.0,0.01956194]
[1674011435782,0.321654,21322.0,21321.0,0.01956194]
[1674011436036,0.468938,21325.0,21321.0,0.01956194]
[1674011436037,0.648888,21325.0,21321.0,0.01956194]
[1674011436362,0.648888,21325.0,21321.0,0.21028789]
[1674011436607,0.321654,21324.0,21321.0,0.21028789]
[1674011436905,0.321654,21323.0,21321.0,0.01956194]
[1674011437220,0.321654,21322.0,21321.0,0.02056194]
[1674011437492,0.321654,21322.0,21321.0,0.01956194]
[1674011437795,0.321654,21322.0,21321.0,0.07256194]
[1674011438060,1.409652,21322.0,21321.0,0.01956194]
[1674011438322,1.409652,21322.0,21321.0,0.08156194]
[1674011438323,1.49809018,21322.0,21321.0,0.08156194]
[1674011438580,1.49809018,21322.0,21321.0,0.01956194]
[1674011438581,1.342952,21322.0,21321.0,0.01956194]
[1674011438831,1.268152,21322.0,21321.0,0.01956194]
[1674011439388,0.799153,21322.0,21321.0,0.01956194]
[1674011439644,0.802153,21322.0,21321.0,0.08156194]
[1674011439900,0.799153,21322.0,21321.0,0.01956194]
[1674011440165,0.829153,21322.0,21321.0,0.02456194]
[1674011440528,0.351654,21322.0,21321.0,0.02456194]
[1674011441197,0.321654,21322.0,21321.0,0.01956194]
[1674011441433,0.351654,21322.0,21321.0,0.02456194]
[1674011444104,0.351654,21322.0,21318.0,0.94326419]
[1674011444331,0.49528333,21322.0,21318.0,0.94326419]
[1674011444564,1.43329533,21322.0,21318.0,0.00512519]
[1674011444805,0.321654,21321.0,21318.0,0.00512519]
[1674011445033,1.43329533,21322.0,21318.0,0.00512519]
[1674011445247,1.43329533,21322.0,21318.0,0.19585114]
[1674011445462,0.321654,21321.0,21318.0,0.00512519]
[1674011445699,0.96429733,21322.0,21318.0,0.00512519]
[1674011445929,1.40331333,21322.0,21318.0,0.00512519]
[1674011446145,0.321654,21321.0,21318.0,0.06312519]
[1674011446378,0.93430333,21322.0,21318.0,0.00512519]
[1674011446607,0.93430333,21322.0,21318.0,0.06312519]
[1674011446608,0.3877253,21320.0,21318.0,0.06312519]
[1674011446823,0.321654,21319.0,21318.0,0.06312519]
[1674011447308,0.3877253,21320.0,21318.0,0.00512519]
[1674011447533,0.321654,21319.0,21318.0,0.06312519]
[1674011447738,0.3907253,21320.0,21318.0,0.06312519]
[1674011447949,0.3877253,21320.0,21318.0,0.00512519]
[1674011448320,0.469006,21322.0,21319.0,0.00090411]
[1674011448610,0.87698619,21323.0,21319.0,0.19163006]
[1674011448850,0.003,21320.0,21319.0,0.19072595]
[1674011449119,0.003,21320.0,21318.0,0.52083885]
[1674011449404,0.321654,21319.0,21318.0,0.52083885]
[1674011449638,0.003,21320.0,21318.0,0.52083885]
[1674011450690,0.619009,21322.0,21318.0,0.46283885]
[1674011450691,0.469009,21322.0,21318.0,0.46283885]
[1674011450951,0.469009,21322.0,21319.0,0.001]
[1674011451213,0.469009,21322.0,21319.0,0.19072595]
[1674011451214,0.321654,21321.0,21319.0,0.19072595]
[1674011451495,0.321654,21320.0,21319.0,0.19072595]
[1674011451760,0.003,21322.0,21319.0,0.938127]
[1674011452194,0.40799019,21323.0,21320.0,0.321654]
[1674011452196,0.40799019,21323.0,21319.0,0.938127]
[1674011452417,1.124099,21325.0,21320.0,0.938068]
[1674011452642,1.41159759,21325.0,21321.0,0.19072595]
[1674011452867,0.003,21322.0,21321.0,0.19072595]
[1674011453090,1.56159759,21325.0,21320.0,0.938054]
[1674011453091,1.41159759,21325.0,21320.0,0.938054]
[1674011453355,1.41159759,21325.0,21320.0,1.49278985]
[1674011453356,0.021,21323.0,21320.0,1.49278985]
[1674011453611,0.021,21323.0,21320.0,0.93807]
[1674011454139,1.41159759,21325.0,21320.0,0.93807]
[1674011454401,1.41159759,21325.0,21321.0,0.3963266]
[1674011454402,1.44559759,21325.0,21321.0,0.3963266]
[1674011454678,1.44559759,21325.0,21321.0,1.05106755]
[1674011454945,0.034,21323.0,21321.0,1.05106755]
[1674011455220,0.034,21323.0,21321.0,0.8603416]
[1674011455751,0.15,21324.0,21320.0,0.469043]
[1674011456058,0.321654,21323.0,21321.0,0.005]
[1674011456310,0.321654,21322.0,21320.0,0.469043]
[1674011456580,0.321654,21321.0,21320.0,0.469043]
[1674011456840,0.33923,21324.0,21320.0,0.469043]
[1674011457086,0.021,21323.0,21321.0,0.001]
[1674011457409,1.52388499,21325.0,21320.0,0.65976895]
[1674011457884,0.46896,21324.0,21320.0,0.71076895]
[1674011457987,1.41160159,21325.0,21321.0,0.43332704]
[1674011458215,0.034,21323.0,21321.0,1.09807199]
[1674011458475,0.47514859,21325.0,21321.0,1.37136704]
[1674011458891,0.50914859,21325.0,21321.0,1.56209299]
[1674011459159,0.47514859,21325.0,21321.0,1.56209299]
[1674011459416,0.034,21323.0,21321.0,1.56709299]
[1674011459679,0.034,21323.0,21321.0,0.90734604]
[1674011461853,0.47514859,21325.0,21321.0,1.37136704]
[1674011462117,1.05936899,21325.0,21321.0,0.96034804]
[1674011462370,0.321654,21324.0,21321.0,0.96034804]
[1674011462667,1.22779409,21325.0,21321.0,0.96034804]
[1674011463204,0.321654,21324.0,21321.0,0.90234804]
[1674011463479,0.003,21324.0,21321.0,0.96026982]
[1674011463746,1.22479409,21325.0,21321.0,0.90226982]
[1674011464324,1.22779409,21325.0,21321.0,1.15099577]
[1674011464326,0.1122834,21324.0,21321.0,0.43324882]
[1674011464599,0.1152834,21324.0,21321.0,0.49124882]
[1674011464883,0.1122834,21324.0,21321.0,0.43324882]
[1674011465143,0.321654,21323.0,21321.0,0.49124882]
[1674011465635,0.321654,21322.0,21321.0,0.43324882]
[1674011465637,0.321654,21322.0,21321.0,0.49124882]
[1674011465897,0.321654,21322.0,21321.0,0.43324882]
[1674011466159,0.4647085,21324.0,21321.0,0.43824882]
[1674011466427,0.321654,21323.0,21321.0,1.09799577]
[1674011466687,0.75585709,21325.0,21321.0,0.90226982]
[1674011466948,0.034,21323.0,21321.0,1.09799577]
[1674011467230,0.034,21323.0,21321.0,1.37629082]
[1674011467932,0.034,21323.0,21322.0,0.321654]
[1674011468149,0.034,21323.0,21322.0,0.937998]
[1674011469419,0.1122834,21326.0,21322.0,1.087998]
[1674011469688,1.69787807,21328.0,21322.0,1.64771785]
[1674011469951,1.69787807,21328.0,21323.0,0.55471985]
[1674011470224,0.1122834,21327.0,21323.0,1.49265385]
[1674011470488,0.321654,21326.0,21323.0,1.12865995]
[1674011470755,0.1122834,21327.0,21324.0,0.33994674]
[1674011471009,0.1122834,21327.0,21324.0,0.99961869]
[1674011471268,0.1122834,21327.0,21324.0,0.80889274]
[1674011471535,0.321654,21326.0,21324.0,0.80889274]
[1674011471897,0.034,21326.0,21324.0,0.80889274]
[1674011472073,0.034,21326.0,21324.0,1.27784774]
[1674011472074,0.321654,21325.0,21324.0,1.27784774]
[1674011472342,0.034,21326.0,21324.0,1.27784774]
[1674011472594,1.22899007,21328.0,21324.0,1.27784774]
[1674011472867,0.034,21327.0,21324.0,1.47357369]
[1674011473096,0.321654,21326.0,21324.0,1.27784774]
[1674011473410,0.034,21326.0,21325.0,0.0741]
[1674011473689,0.12649401,21332.0,21325.0,1.80247554]
[1674011473953,0.034,21328.0,21326.0,1.96514156]
[1674011474206,0.01421061,21332.0,21327.0,3.33923737]
[1674011474489,0.01421061,21332.0,21330.0,0.0748]
[1674011474770,0.01421061,21332.0,21331.0,0.6856479]
[1674011475051,0.01421061,21332.0,21331.0,1.6232499]
[1674011475577,0.01721061,21332.0,21331.0,1.6980499]
[1674011475893,0.01721061,21332.0,21331.0,2.18266107]
[1674011476150,0.02021061,21332.0,21331.0,2.24066107]
[1674011476444,0.02021061,21332.0,21331.0,2.18266107]
[1674011476445,0.01421061,21332.0,21331.0,2.18266107]
[1674011477488,0.01721061,21332.0,21331.0,2.24066107]
[1674011478314,0.37761689,21336.0,21331.0,2.24066107]
[1674011478315,0.37649663,21336.0,21331.0,2.24066107]
[1674011478529,0.37649663,21336.0,21332.0,0.87637385]
[1674011478793,0.37649663,21336.0,21333.0,0.8327459]
[1674011479060,0.37649663,21336.0,21333.0,0.65947795]
[1674011479316,0.321654,21335.0,21333.0,0.468752]
[1674011479649,0.37649663,21336.0,21333.0,0.468752]
[1674011479847,0.40549663,21336.0,21333.0,0.468752]
[1674011480082,0.321654,21335.0,21333.0,0.468752]
[1674011480326,0.40549663,21336.0,21333.0,0.468752]
[1674011480869,0.029,21335.0,21333.0,0.473752]
[1674011481394,0.468693,21336.0,21332.0,1.26005504]
[1674011481650,0.468693,21336.0,21331.0,0.468801]
[1674011481651,0.63521044,21335.0,21331.0,0.468801]
[1674011481910,0.321654,21334.0,21330.0,1.28063715]
[1674011482171,0.321654,21333.0,21330.0,1.38545025]
[1674011482435,0.95392844,21335.0,21332.0,0.3213042]
[1674011483017,0.321654,21334.0,21332.0,0.3213042]
[1674011483279,0.98594044,21335.0,21333.0,0.005]
[1674011483557,0.471654,21334.0,21332.0,0.3213042]
[1674011483830,0.321654,21333.0,21332.0,0.005]
[1674011484117,1.78158277,21333.0,21329.0,0.3790025]
[1674011484380,1.38542877,21333.0,21332.0,0.005]
[1674011484637,1.74138278,21333.0,21332.0,0.005]
[1674011485100,1.74138278,21333.0,21329.0,0.3790025]
[1674011485378,0.321654,21332.0,21329.0,0.4390025]
[1674011485628,0.468784,21332.0,21329.0,0.4390025]
[1674011486150,0.468784,21332.0,21329.0,0.3790025]
[1674011486408,0.95098878,21333.0,21329.0,0.3790025]
[1674011486673,0.98298878,21333.0,21332.0,0.005]
[1674011486948,0.95098878,21333.0,21329.0,0.93372235]
[1674011487206,0.003,21332.0,21329.0,0.4390025]
[1674011487506,0.95098878,21333.0,21329.0,0.3790025]
[1674011487775,0.98298878,21333.0,21332.0,0.005]
[1674011488045,0.98298878,21333.0,21329.0,0.7429964]
[1674011488046,0.95098878,21333.0,21329.0,0.7429964]
[1674011488304,0.321654,21332.0,21329.0,0.4390025]
[1674011488566,0.321654,21331.0,21329.0,0.3790025]
[1674011488843,1.42574678,21333.0,21329.0,0.4390025]
[1674011489108,1.41724678,21333.0,21329.0,0.4390025]
[1674011489382,1.41724678,21333.0,21329.0,0.3790025]
[1674011489383,0.321654,21332.0,21329.0,0.3790025]
[1674011489641,0.321654,21331.0,21329.0,0.4390025]
[1674011489898,1.41424678,21333.0,21329.0,0.4390025]
[1674011489899,0.47671478,21333.0,21329.0,0.4390025]
[1674011490178,0.03430001,21333.0,21329.0,1.87140435]
[1674011490429,0.003,21332.0,21329.0,1.93140435]
[1674011490703,0.003,21332.0,21329.0,1.7406784]
[1674011490946,0.03430001,21333.0,21329.0,1.7406784]
[1674011490947,0.03730001,21333.0,21329.0,1.7406784]
[1674011491210,0.03730001,21333.0,21330.0,0.3639939]
[1674011491479,0.03730001,21333.0,21331.0,0.468801]
[1674011491987,0.03430001,21333.0,21331.0,0.468801]
[1674011492195,0.003,21332.0,21331.0,1.29206777]
[1674011492455,0.03430001,21333.0,21331.0,1.29206777]
[1674011492741,0.05330001,21333.0,21331.0,1.73126167]
[1674011493474,0.05330001,21333.0,21332.0,0.15]
[1674011493475,0.03430001,21333.0,21332.0,0.15]
[1674011493741,0.03730001,21333.0,21332.0,1.6232059]
[1674011493995,0.03430001,21333.0,21332.0,1.6980059]
[1674011494528,0.03430001,21333.0,21332.0,1.9980059]
[1674011494785,0.05330001,21333.0,21332.0,1.6980059]
[1674011495043,0.03430001,21333.0,21332.0,1.6980059]
[1674011495515,0.03730001,21333.0,21332.0,2.0580059]
[1674011495799,0.03430001,21333.0,21332.0,1.9980059]
[1674011496297,0.03730001,21333.0,21332.0,2.0580059]
[1674011496811,0.03730001,21333.0,21332.0,3.07625153]
[1674011497079,0.03730001,21333.0,21332.0,3.83013053]
[1674011497889,0.03730001,21333.0,21332.0,3.30328659]
[1674011498117,0.03730001,21333.0,21332.0,3.36328659]
[1674011498395,0.03730001,21333.0,21332.0,3.51841606]
[1674011498671,0.03730001,21333.0,21332.0,3.07962216]
[1674011499207,0.03730001,21333.0,21332.0,3.23515294]
[1674011499467,0.03730001,21333.0,21332.0,3.30975294]
[1674011499761,0.03730001,21333.0,21332.0,3.28307752]
[1674011500893,0.03730001,21333.0,21332.0,2.50587583]
[1674011501152,0.03730001,21333.0,21332.0,2.63973895]
[1674011502504,0.03730001,21333.0,21332.0,2.93973895]
[1674011503022,0.03730001,21333.0,21332.0,3.01433895]
[1674011503857,0.03730001,21333.0,21332.0,3.49154064]
[1674011504388,0.03730001,21333.0,21332.0,3.07888659]
[1674011504882,0.0144852,21337.0,21333.0,0.46838418]
[1674011504883,0.0144852,21337.0,21333.0,0.58902873]
[1674011505138,0.0144852,21337.0,21336.0,0.0747]
[1674011505386,0.0144852,21337.0,21336.0,1.802427]
[1674011506183,0.0144852,21337.0,21336.0,1.333736]
[1674011506432,0.0144852,21337.0,21336.0,1.012082]
[1674011506958,0.0164852,21337.0,21336.0,1.075082]
[1674011508825,0.0164852,21337.0,21336.0,0.531691]
[1674011511772,0.0164852,21337.0,21336.0,0.063]
[1674011512558,0.0164852,21337.0,21336.0,0.531691]
[1674011512827,0.3381392,21337.0,21336.0,0.063]
[1674011513352,0.8068082,21337.0,21336.0,0.063]
[1674011514670,0.3381392,21337.0,21336.0,0.063]
[1674011515615,0.0164852,21337.0,21336.0,0.063]
[1674011516276,0.0164852,21337.0,21336.0,0.531691]
[1674011517073,0.0164852,21337.0,21336.0,0.91880537]
[1674011518173,0.0164852,21337.0,21336.0,0.45011437]
[1674011518449,0.0856452,21337.0,21336.0,0.063]
[1674011518709,0.4072992,21337.0,21336.0,0.063]
[1674011519553,0.89339238,21337.0,21336.0,0.063]
[1674011520631,0.8759682,21337.0,21336.0,0.063]
[1674011521468,0.4072992,21337.0,21336.0,0.063]